Cogmind - Beta 17 @@@ ROGUE MODE // 2026.08.01 @ 17:00:28 Player: kite Result: Destroyed by D-53 Grenadier with Mini Grenade Launcher Performance ------------- Evolutions (0) 0 Regions Visited (2) 400 Robots Destroyed (21) 105 Value Destroyed (329) 329 Prototype IDs (0) 0 Alien Tech Used (0) 0 Bonus (0) 0 TOTAL SCORE: 834 Bonus ------- None Cogmind --------- Core Integrity 0/250 Matter 120/300 Energy 99/100 System Corruption 0% Temperature Cool (0) Movement Core (50) Location -10/Mines Parts ------- > --- POWER (1) -------- (None) > --- PROPULSION (2) --- (None) > --- UTILITY (2) ------ (None) > --- WEAPON (2) ------- (None) > --- INVENTORY (5) ---- Improved Treads Improved Treads Large Matter Pod (150) Tractor Beam Rocket Launcher Peak State ------------ > --- POWER ------------ Light Ion Engine > --- PROPULSION ------- Light Treads Improved Treads > --- UTILITY ---------- Large Storage Unit > --- WEAPON ----------- Light Assault Rifle Rocket Launcher > --- INVENTORY -------- Improved Treads Improved Treads Improved Treads Large Matter Pod Tractor Beam Rocket Launcher [Rating: 9] Favorites ----------- Power Ion Engine Engine Ion Engine Propulsion Light Treads Treads Light Treads Utility Small Storage Unit Storage Small Storage Unit Weapon Medium Laser Energy Gun Medium Laser Ballistic Gun Light Assault Rifle Launcher Rocket Launcher Build | -11 -10 -10 ------- Run | Yrd Mat Min Slots Evolved . | . . . Power . | . . . Propulsion . | . . . Utility . | . . . Weapon . | . . . Parts Attached 15 | 6 4 5 Power 2 | 1 . 1 Engine 2 | 1 . 1 Core . | . . . Reactor . | . . . Propulsion 4 | 2 1 1 Treads 4 | 2 1 1 Leg . | . . . Wheel . | . . . Hover . | . . . Flight . | . . . Utility 2 | 1 1 . Device . | . . . Storage 2 | 1 1 . Processor . | . . . Hackware . | . . . Protection . | . . . Artifact . | . . . Weapon 7 | 2 2 3 Energy Gun 2 | 2 . . Energy Cannon . | . . . Ballistic Gun 2 | . 2 . Ballistic Cannon . | . . . Launcher 3 | . . 3 Special Weapon . | . . . Impact Weapon . | . . . Slashing Weapon . | . . . Piercing Weapon . | . . . Special Melee Weapon . | . . . Unidentified Prototypes . | . . . Parts Lost 5 | . . 5 Power 1 | . . 1 Propulsion 1 | . . 1 Utility . | . . . Weapon 3 | . . 3 Highest Loss Streak 5 | . . 5 To Critical Strikes . | . . . Average Backups 7 | 2 7 7 Power . | . 1 . Propulsion 2 | 1 2 3 Utility 2 | . 2 2 Weapon 1 | . 1 2 Tool/Special . | . . . Unused Backups 10 | . 4 6 Power . | . . . Propulsion 5 | . 2 3 Utility 4 | . 2 2 Weapon 1 | . . 1 Tool/Special . | . . . Average Slot Usage (%) 83 | . 85 70 Engine 13 | . 14 11 Treads 27 | . 28 23 Storage 14 | . 14 12 Energy Gun 12 | . 14 . Ballistic Gun 13 | . 13 12 Peak Build Rating 9 | 6 8 9 Average Rating 6 | 4 6 7 On Entrance 4 | . 6 7 Avg Prop Armor Cover (%) . | . . . Naked Turns 6 | . . 6 Heaviest Build 28 | 14 28 28 Greatest Support 43 | 40 40 43 Greatest Overweight (x) . | . . . Average Overweight (x) . | . . . Largest Inventory Capacity 15 | 8 15 15 Average Capacity 9 | 7 8 14 Most Carried 11 | 4 11 11 Average Carried 7 | 2 7 7 Final Capacity 15 | 8 15 5 Final Carried 11 | 4 11 5 Class Distribution -------------------- 100% | Mutant Dominant Class ---------------- Mutant | -10/Materials Mutant | -10/Mines Resources | -11 -10 -10 ----------- Run | Yrd Mat Min Matter Collected 747 | 193 554 . Remotely . | . . . Salvage Created 544 | . 489 55 Parts 34 | . 31 3 Haulers Intercepted 1 | . 1 . Recyclers Shooed 1 | . 1 . Parts Field Recycled . | . . . Retrieved Matter . | . . . Parts Self-Destructed . | . . . Prevented . | . . . Parts Restored . | . . . Kills | -11 -10 -10 ------- Run | Yrd Mat Min Combat Hostiles Destroyed 34 | . 11 23 Guns 12 | . 11 1 AOE 22 | . . 22 Classes Destroyed 8 | . 7 1 Worker 1 | . 1 . Builder 1 | . 1 . Hauler 1 | . 1 . Recycler 1 | . 1 . Watcher 2 | . 2 . Swarmer 10 | . 6 4 Grunt 5 | . 5 . Assembled 19 | . . 19 Best Kill Streak 20 | . 4 20 Combat Bots Only 20 | . 4 20 Max Kills in Single Turn 5 | . 1 5 Gunslinging . | . . . Exploded 5 | . . 5 Melee . | . . . Uniques/NPCs Destroyed . | . . . Combat | -11 -10 -10 -------- Run | Yrd Mat Min Hostile Shots Fired 108 | . 64 44 Missed 33 | . 21 12 Hits 75 | . 43 32 Melee 9 | . . 9 Projectile 66 | . 43 23 AOE 2 | . . 2 Critical Strikes 1 | . 1 . Damage Taken 1117 | . 394 723 Core 300 | . 18 282 Absorbed by Shields . | . . . Core Remaining (%) 100 | 100 . . Volleys Fired 60 | . 46 14 Largest 2 | . 2 2 Hottest 100 | . 100 53 Shots Fired 110 | . 91 19 Gun 99 | . 91 8 Cannon . | . . . Launcher 11 | . . 11 Special . | . . . Kinetic 49 | . 41 8 Thermal 50 | . 50 . Explosive 11 | . . 11 Electromagnetic . | . . . Robot Hit Streak 8 | . 8 6 Robot Miss Streak 5 | . 5 3 Penetration Max . | . . . Secondary Targets 1 | . . 1 Max Gunslinging Chain 1 | . . 1 Shots Hit Robots 57 | . 47 10 Core Hits 64 | . 24 40 Critical Kills . | . . . Critical Parts Destroyed . | . . . Critical Strikes 2 | . 2 . Burn 2 | . 2 . Melee Attacks . | . . . Impact . | . . . Slashing . | . . . Piercing . | . . . Sneak Attacks . | . . . Combat Hostiles . | . . . Follow-up Attacks . | . . . Damage Inflicted 2291 | . 582 1709 Guns 621 | . 582 39 Cannons . | . . . Explosions 1670 | . . 1670 Melee . | . . . Ramming . | . . . Kinetic 333 | . 294 39 Thermal 288 | . 288 . Explosive 1670 | . . 1670 Electromagnetic . | . . . Impact . | . . . Slashing . | . . . Piercing . | . . . Highest Corruption . | . . . Average Corruption . | . . . Corruption Purged . | . . . Corruption Blocked . | . . . Overload Shots . | . . . Overflow Damage 81 | . . 81 Projectiles . | . . . Explosions 81 | . . 81 Melee . | . . . Knockbacks . | . . . Impact . | . . . Kinetic . | . . . Secondary . | . . . Self-Inflicted Damage 124 | . . 124 Shots 3 | . . 3 Rammed . | . . . Targets Rammed . | . . . Kicked . | . . . Crushed . | . . . Highest Temperature 346 | . 346 24 Average Temperature 107 | . 112 11 Received Heat Transfer 156 | . 96 60 Effects 1 | . 1 . Shutdowns 1 | . 1 . Siege Activations . | . . . Martial Activations . | . . . Shielding Activations . | . . . Robots Disrupted . | . . . Combat Hostiles . | . . . Robots Corrupted . | . . . Combat Hostiles . | . . . Parts Fried . | . . . Impact Corruptions . | . . . Robots Melted . | . . . Combat Hostiles . | . . . Parts Melted 1 | . 1 . Heat Transferred 999 | . 999 . Parts Sabotaged . | . . . Parts Stolen . | . . . Parts Stripped . | . . . Power Chain Reactions . | . . . Alert | -11 -10 -10 ------- Run | Yrd Mat Min Maximum Alert Level . | . . . Low Security (%) 100 | 100 100 100 Level 1 . | . . . Level 2 . | . . . Level 3 . | . . . Level 4 . | . . . Level 5 . | . . . High Security . | . . . Max Security . | . . . Peak Influence 183 | . 183 93 Initial 21 | . . 21 Average 64 | . 72 40 Influence Increases 545 | . 393 152 Destroy 0b10 Robot/C 300 | . 220 80 Destroy 0b10 Robot/NC 30 | . 30 . Destroy Leader 56 | . 46 10 Successful Hack 7 | . 7 . Destroy Structure 62 | . . 62 Lose Combat Pursuer 90 | . 90 . Influence Decreases 482 | . 337 145 Entered New Map 35 | . . 35 Time Decay 377 | . 337 40 Lost Part 50 | . . 50 Lost Ally 20 | . . 20 Squads Dispatched 1 | . 1 . Investigation . | . . . Extermination . | . . . Reinforcement 1 | . 1 . Assault . | . . . Garrison . | . . . Intercept . | . . . Searches Triggered . | . . . Construction Impeded . | . . . Haulers Reinforced . | . . . Active Scanning Responses . | . . . Cargo Convoy Interrupts . | . . . Stealth | -11 -10 -10 --------- Run | Yrd Mat Min Distress Signals 2 | . 2 . Communications Jammed . | . . . Distress Signals . | . . . Times Spotted 50 | . 23 27 Peak Tracking Total 15 | . 5 15 Tactical Retreats 3 | . 3 . Traps | -11 -10 -10 ------- Run | Yrd Mat Min Traps Triggered . | . . . Indirectly . | . . . Trap Hack Attempts . | . . . Triggered . | . . . Disarmed . | . . . Reprogrammed . | . . . Reused . | . . . Traps Extracted . | . . . Installed . | . . . Triggered . | . . . Machines | -11 -10 -10 ---------- Run | Yrd Mat Min Machines Disabled . | . . . Max in Single Turn . | . . . Machines Repaired . | . . . Machines Dismantled . | . . . Machines Sabotaged . | . . . Overloaded Fab Kills . | . . . Hacking | -11 -10 -10 --------- Run | Yrd Mat Min Machines Accessed 2 | . 2 . Terminals 2 | . 2 . Fabricators . | . . . Repair Stations . | . . . Recycling Units . | . . . Scanalyzers . | . . . Garrison Access . | . . . Total Hacks 5 | . 5 . Successful 1 | . 1 . Failed 3 | . 3 . Catastrophic . | . . . Database Lockouts 1 | . 1 . Manual 5 | . 5 . Terminals 5 | . 5 . Fabricators . | . . . Repair Stations . | . . . Recycling Units . | . . . Scanalyzers . | . . . Garrison Access . | . . . Terminal Hacks 1 | . 1 . Part Schematic 1 | . 1 . Fabricator Hacks . | . . . Repair Station Hacks . | . . . Recycling Unit Hacks . | . . . Scanalyzer . | . . . Garrison Access Hacks . | . . . Unauthorized Hacks . | . . . Terminals . | . . . Fabricators . | . . . Repair Stations . | . . . Recycling Units . | . . . Scanalyzers . | . . . Garrison Access . | . . . Data Cores Recovered . | . . . Used . | . . . Hacking Detections 2 | . 2 . Full Trace Events 1 | . 1 . Feedback Events . | . . . Feedback Blocked . | . . . Robot Schematics Acquired . | . . . Robots Built . | . . . Authchips . | . . . Time . | . . . Total Robot Build Rating . | . . . Part Schematics Acquired 1 | . 1 . Parts Built . | . . . Authchips . | . . . Time . | . . . Total Part Build Rating . | . . . Part Studies Acquired . | . . . Parts Repaired . | . . . Time . | . . . Parts Recycled . | . . . Recycled Matter . | . . . Retrieved Matter . | . . . Retrieved Components . | . . . Parts Scanalyzed . | . . . Part Schematics Acquired . | . . . Parts Damaged . | . . . Bothacking | -11 -10 -10 ------------ Run | Yrd Mat Min Used RIF Installer . | . . . Robots Hacked . | . . . Non-combat . | . . . Combat . | . . . Robot Hacks Applied . | . . . Relay Couplers Released . | . . . Fabnet Peak Effective % . | . . . Robots Rewired . | . . . Allies Hacked . | . . . Hacks Repelled . | . . . Allies | -11 -10 -10 -------- Run | Yrd Mat Min Total Allies 2 | . . 2 Largest Group 2 | . . 2 Highest-Rated Group 41 | . . 41 Highest-Rated Ally 31 | . . 31 Total Orders . | . . . Ally Attacks . | . . . Total Damage . | . . . Kills . | . . . Allies Corrupted . | . . . Allies Melted . | . . . Intel | -11 -10 -10 ------- Run | Yrd Mat Min Active Infowar (turns) . | . . . Robot Analysis Total . | . . . Derelict Logs Recovered . | . . . Drone Launches . | . . . Drone Recoveries . | . . . Exploration | -11 -10 -10 ------------- Run | Yrd Mat Min Turns Passed 1123 | 85 950 88 Spaces Moved 556 | 49 474 33 Core 11 | 5 . 6 Treads 545 | 44 474 27 Legs . | . . . Wheels . | . . . Hover . | . . . Flight . | . . . Fastest Speed 50 | 50 160 50 Average Speed 157 | 148 160 140 Slowest Speed 160 | 160 160 160 Overloaded Moves . | . . . Propulsion Burnouts . | . . . Robots Hopped . | . . . Potential Cave-ins . | . . . Cave-ins Triggered . | . . . Exploration Rate (%) 27 | 4 65 12 Regions Visited 2 Branch Regions 1 Pre-discovered Areas . | . . . Known Exits Taken . | . . . Unknown Exits Taken 2 | 1 1 . Scrap Searched . | . . . Spaces Dug . | . . . Terrain Destroyed 95 | . . 95 Melee . | . . . Projectile . | . . . AOE 95 | . . 95 Terrain Rammed . | . . . Walls Destroyed . | . . . Machines Disabled . | . . . Actions | -11 -10 -10 --------- Run | Yrd Mat Min Total 695 | 58 581 56 Wait 38 | . 35 3 Move 554 | 48 473 33 Hop . | . . . Pick Up 17 | 4 13 . Fast Attach 7 | 6 1 . Attach 5 | . . 5 Detach . | . . . Swap 6 | . 5 1 Drop 8 | . 8 . Fire 60 | . 46 14 Melee . | . . . Ram . | . . . Kick . | . . . Crush . | . . . Escape Stasis . | . . . Rewire . | . . . Trap . | . . . Miscellaneous . | . . . Route ------- -11/Scrapyard -10/Materials (discovered 2 exits: [*Mat] / [*Min]) -10/Mines History --------- Turn | Location | Event 2 | -11/Scrapyard | Met Revision 17 26 | -11/Scrapyard | Discovered new exit (range 16) 86 | -11/Scrapyard | Entered Materials 231 | -10/Materials | Central database locked down 301 | -10/Materials | Build established: Mutant 491 | -10/Materials | Discovered new exit (range 5) 889 | -10/Materials | Discovered new exit (range 13) 1036 | -10/Materials | Entered Mines 1037 | -10/Mines | Assembled infested the area 1060 | -10/Mines | Core integrity fell below 50% 1067 | -10/Mines | Core integrity fell below 20% 1087 | -10/Mines | Destroyed 20 combat bots 1092 | -10/Mines | Lost 5 parts (1p1n3w) 1118 | -10/Mines | Released all parts (6) 1124 | -10/Mines | Destroyed by D-53 Grenadier with Mini Grenade Launcher Last Messages --------------- 01105_ S-10 Pest destroyed. 01105_ U-05 Engineer builds a Wall. 01107_ S-10 Pest destroyed. 01109_ U-05 Engineer lays Concrete. 01116_ The unstable cave ceiling collapses. 01116_ U-05 Engineer lays Concrete. 01117_ U-05 Engineer builds a Wall. 01118_ C-45 Heavy ARC bursts open, deploying its payload. 01118_ D-53 Grenadier unfolds itself. 01118_ Released Lgt. Treads. 01118_ Released Lrg. Storage Unit. 01118_ Released Lgt. Ion Engine. 01118_ Released Imp. Treads. 01118_ Released Lgt. Assault Rifle. 01118_ Released Rocket Launcher. 01120_ A pair of derelicts emerge from the shadows: "We're, um, lost. You wouldn't happen to know the way out of here, would you?" 01123_ ZI-066(z) destroyed. Map ----- +----------------------------------------------------+ | ?????????????????????????????????????????????????? | | ?????????????????????????????????????????????????? | | ?????????????????????????????????????????????????? | | ?????????????????????????????????????????????????? | | ?????????????????????????????????????????????????? | | ?????????????????????????????????????????????????? | | ?????????????????????????????????????????????????? | | ?????????????????????????????????????????????????? | | ?????????????????????????????????????????????????? | | ?????????????????????????????????????????????????? | | ?????????#???????????????????????????????????????? | | ?????????# ??????????????????????????????????????? | | ????? #?# #????####?????????????????????????????? | | ????? ## ##??# $ ?????????????????????????????? | | ???? ### ?????????????????????????????? | | ???? #?????????????????????????????? | | ???? #?????????????????????????????? | | ????? " #?????????????????????????????? | | ??????? "% #?????????????????????????????? | | ????????? [ #????###??????????????????????? | | ??????????# # ###### ##?????????????????????? | | ???????????# #?????????????????????? | | ????????????# d =*] #?????????????????????? | | #????????#### d ! =% #?????????????????????? | | ##???###### [ g #?????????????????????? | | ##### ## ### @ #?????????????????????? | | ## # ###?### ##?????????????????????? | | # " ##?????####??????????????????????? | | # ##????????????????????????????????? | | ###?????????????????????????????????? | | #???????????????????????????????????? | | # #???????????????????????????????????? | | #####???????????????????????????????????? | | | | | | | | | | | | | | | | | | | | | | | | | | | | | | | | | | | +----------------------------------------------------+ Best States ------------- Heat Dissipation 25 Energy Generation 10 Energy Capacity 250 Matter Stores 300 Matter Capacity 300 Sight Range 16 Terrain Scan Density 10 Evasion (%) 50 Recoil Reduction 2 Item Schematics ----------------- Cargo Storage Unit | -10/Materials | Hacked Robot Schematics ------------------ None Fabricated ------------ Nothing Repaired ---------- Nothing Studied --------- None Alien Tech Used ----------------- None Achievements -------------- None Challenges ------------ None Game ------ Seed PersonalColdBallwheel Manual? 0 Play Time 00:07:33 Cumulative 513.9 hours Start 2026.08.01 @ 16:37:13 End 2026.08.01 @ 17:00:28 Sessions 1 Manual Loads 0 Difficulty Rogue Special Mode None Game No. 458 Rogue 458 Adventurer 0 Explorer 0 Win Type - Total 13 Types 7/0/3/1/0/0/0/1/0/1 Lore% 63 Gallery% 70 Achievement% 67 Wizard Run 0 Options --------- Layout 1 ASCII 0 Keyboard 0 Movement Mouse Keybinds 0 Fullscreen 2 Font 24/Cog Map View 50x35 Zoom Use 31% Tactical HUD 1 Map Filters NONE Filters NONE Steam 1 RUN: e60e6a64-bf64-4156-a94f-a6e36fee3181